Cogmind - Beta 16 --- EXPLORER MODE // 2025.12.12 @ 20:39:00 // Winter2019/RPGLIKE Player: PhenomPhear Result: Self-destructed Performance ------------- Evolutions (1) 500 Regions Visited (2) 400 Robots Destroyed (4) 20 Value Destroyed (44) 44 Prototype IDs (0) 0 Alien Tech Used (0) 0 Bonus (0) 0 TOTAL SCORE: 964 Bonus ------- None Cogmind --------- Core Integrity 592/600 Matter 281/300 Energy 250/250 System Corruption 0% Temperature Cool (0) Movement Rolling (80) Location -9/Materials Parts ------- > --- POWER (1) -------- Ion Engine > --- PROPULSION (2) --- Wheel Wheel > --- UTILITY (2) ------ Weapon Shielding Light Armor Plating > --- WEAPON (2) ------- Assault Rifle Grenade Launcher > --- INVENTORY (0) ---- (None) Peak State ------------ > --- POWER ------------ Light Ion Engine > --- PROPULSION ------- Light Treads Light Treads > --- UTILITY ---------- Weapon Shielding Light Armor Plating > --- WEAPON ----------- Small Laser Small Laser > --- INVENTORY -------- (None) [Rating: 7] Favorites ----------- Power Light Ion Engine Engine Light Ion Engine Propulsion Wheel Treads Light Treads Wheel Wheel Utility Weapon Shielding Protection Weapon Shielding Weapon Small Laser Energy Gun Small Laser Ballistic Gun Assault Rifle Launcher Grenade Launcher Build | -11 -10 -9 ------- Run | Yrd Mat Mat Slots Evolved 3 | 3 . . Power . | . . . Propulsion 1 | 1 . . Utility 1 | 1 . . Weapon 1 | 1 . . Parts Attached 12 | 7 5 . Power 2 | 1 1 . Engine 2 | 1 1 . Core . | . . . Reactor . | . . . Propulsion 4 | 2 2 . Treads 2 | 2 . . Leg . | . . . Wheel 2 | . 2 . Hover . | . . . Flight . | . . . Utility 2 | 2 . . Device . | . . . Storage . | . . . Processor . | . . . Hackware . | . . . Protection 2 | 2 . . Artifact . | . . . Weapon 4 | 2 2 . Energy Gun 2 | 2 . . Energy Cannon . | . . . Ballistic Gun 1 | . 1 . Ballistic Cannon . | . . . Launcher 1 | . 1 . Special Weapon . | . . . Impact Weapon . | . . . Slashing Weapon . | . . . Piercing Weapon . | . . . Special Melee Weapon . | . . . Unidentified Prototypes . | . . . Parts Lost . | . . . Power . | . . . Propulsion . | . . . Utility . | . . . Weapon . | . . . Highest Loss Streak . | . . . To Critical Strikes . | . . . Average Backups . | . . . Power . | . . . Propulsion . | . . . Utility . | . . . Weapon . | . . . Tool/Special . | . . . Unused Backups . | . . . Power . | . . . Propulsion . | . . . Utility . | . . . Weapon . | . . . Tool/Special . | . . . Average Slot Usage (%) 98 | . 98 . Engine 14 | . 14 . Treads 1 | . 1 . Wheel 25 | . 25 . Protection 28 | . 28 . Energy Gun 19 | . 19 . Ballistic Gun 3 | . 3 . Launcher 4 | . 4 . Peak Build Rating 7 | 7 7 . Average Rating 6 | 5 6 . On Entrance 4 | . 7 7 Avg Prop Armor Cover (%) . | . . . Naked Turns . | . . . Heaviest Build 14 | 9 14 . Greatest Support 40 | 40 40 . Greatest Overweight (x) . | . . . Average Overweight (x) . | . . . Largest Inventory Capacity . | . . . Average Capacity . | . . . Most Carried . | . . . Average Carried . | . . . Final Capacity . | . . . Final Carried . | . . . Class Distribution -------------------- 100% | Hacker-Mutant Dominant Class ---------------- Hacker-Mutant | -10/Materials Hacker-Mutant | -9/Materials Resources | -11 -10 -9 ----------- Run | Yrd Mat Mat Matter Collected 331 | 270 61 . Remotely . | . . . Salvage Created 148 | 86 62 . Parts 6 | . 6 . Haulers Intercepted 2 | . 2 . Recyclers Shooed . | . . . Parts Field Recycled . | . . . Retrieved Matter . | . . . Parts Self-Destructed . | . . . Prevented . | . . . Parts Restored . | . . . Kills | -11 -10 -9 ------- Run | Yrd Mat Mat Combat Hostiles Destroyed 1 | . 1 . AOE 1 | . 1 . Classes Destroyed 3 | 1 2 . Hauler 2 | . 2 . Recycler 1 | 1 . . Grunt 1 | . 1 . Best Kill Streak 2 | 1 2 . Combat Bots Only 1 | . 1 . Max Kills in Single Turn 2 | 1 2 . Gunslinging . | . . . Exploded 1 | . 1 . Melee . | . . . Uniques/NPCs Destroyed . | . . . Combat | -11 -10 -9 -------- Run | Yrd Mat Mat Hostile Shots Fired . | . . . Missed . | . . . Hits . | . . . Damage Taken 16 | . 16 . Core 11 | . 11 . Absorbed by Shields . | . . . Redirected to Core 11 | . 11 . Ignored by Resistances 14 | . 14 . Core Remaining (%) 99 | 100 98 . Volleys Fired 10 | 3 7 . Largest 2 | 2 2 . Hottest 80 | 80 80 . Shots Fired 17 | 6 11 . Gun 14 | 6 8 . Cannon . | . . . Launcher 3 | . 3 . Special . | . . . Kinetic . | . . . Thermal 14 | 6 8 . Explosive 3 | . 3 . Electromagnetic . | . . . Robot Hit Streak 13 | 5 13 . Robot Miss Streak . | . . . Penetration Max . | . . . Secondary Targets . | . . . Shots Hit Robots 13 | 5 8 . Core Hits 9 | 2 7 . Critical Kills . | . . . Critical Parts Destroyed . | . . . Critical Strikes . | . . . Melee Attacks . | . . . Impact . | . . . Slashing . | . . . Piercing . | . . . Sneak Attacks . | . . . Combat Hostiles . | . . . Follow-up Attacks . | . . . Damage Inflicted 278 | 53 225 . Guns 145 | 53 92 . Cannons . | . . . Explosions 133 | . 133 . Melee . | . . . Ramming . | . . . Kinetic . | . . . Thermal 145 | 53 92 . Explosive 133 | . 133 . Electromagnetic . | . . . Impact . | . . . Slashing . | . . . Piercing . | . . . Highest Corruption . | . . . Average Corruption . | . . . Corruption Purged . | . . . Corruption Blocked . | . . . Overload Shots . | . . . Overflow Damage . | . . . Projectiles . | . . . Explosions . | . . . Melee . | . . . Knockbacks . | . . . Impact . | . . . Kinetic . | . . . Secondary . | . . . Self-Inflicted Damage 6 | . 6 . Shots 1 | . 1 . Rammed . | . . . Targets Rammed . | . . . Kicked . | . . . Crushed . | . . . Highest Temperature 108 | 81 108 . Average Temperature 49 | 41 55 . Received Heat Transfer . | . . . Siege Activations . | . . . Martial Activations . | . . . Shielding Activations . | . . . Robots Disrupted . | . . . Combat Hostiles . | . . . Robots Corrupted . | . . . Combat Hostiles . | . . . Parts Fried . | . . . Impact Corruptions . | . . . Robots Melted . | . . . Combat Hostiles . | . . . Parts Melted . | . . . Heat Transferred 325 | 125 200 . Parts Sabotaged . | . . . Parts Stolen . | . . . Parts Stripped . | . . . Power Chain Reactions . | . . . Alert | -11 -10 -9 ------- Run | Yrd Mat Mat Maximum Alert Level . | . . . Low Security (%) 100 | 100 100 . Level 1 . | . . . Level 2 . | . . . Level 3 . | . . . Level 4 . | . . . Level 5 . | . . . High Security . | . . . Max Security . | . . . Peak Influence 45 | 5 45 . Initial 8 | . . 8 Average 4 | . 5 . Influence Increases 57 | 5 52 . Destroy 0b10 Robot/C 20 | . 20 . Destroy 0b10 Robot/NC 15 | 5 10 . Destroy Leader 4 | . 4 . Destroy Structure 18 | . 18 . Influence Decreases 49 | 5 22 22 Entered New Map 22 | . . 22 Time Decay 27 | 5 22 . Squads Dispatched . | . . . Investigation . | . . . Extermination . | . . . Reinforcement . | . . . Assault . | . . . Garrison . | . . . Intercept . | . . . Searches Triggered . | . . . Construction Impeded . | . . . Haulers Reinforced . | . . . Active Scanning Responses . | . . . Cargo Convoy Interrupts . | . . . Stealth | -11 -10 -9 --------- Run | Yrd Mat Mat Distress Signals 1 | . 1 . Communications Jammed . | . . . Distress Signals . | . . . Times Spotted 2 | . 2 . Peak Tracking Total 2 | . 2 . Tactical Retreats . | . . . Traps | -11 -10 -9 ------- Run | Yrd Mat Mat Traps Triggered 1 | . 1 . Indirectly . | . . . Trap Hack Attempts . | . . . Triggered . | . . . Disarmed . | . . . Reprogrammed . | . . . Reused . | . . . Traps Extracted . | . . . Installed . | . . . Triggered . | . . . Machines | -11 -10 -9 ---------- Run | Yrd Mat Mat Machines Disabled . | . . . Max in Single Turn . | . . . Machines Repaired . | . . . Machines Dismantled . | . . . Machines Sabotaged . | . . . Overloaded Fab Kills . | . . . Hacking | -11 -10 -9 --------- Run | Yrd Mat Mat Machines Accessed 1 | . 1 . Terminals . | . . . Fabricators . | . . . Repair Stations . | . . . Recycling Units 1 | . 1 . Scanalyzers . | . . . Garrison Access . | . . . Total Hacks 1 | . 1 . Successful 1 | . 1 . Failed . | . . . Catastrophic . | . . . Database Lockouts . | . . . Manual . | . . . Terminals . | . . . Fabricators . | . . . Repair Stations . | . . . Recycling Units 1 | . 1 . Scanalyzers . | . . . Garrison Access . | . . . Terminal Hacks . | . . . Fabricator Hacks . | . . . Repair Station Hacks . | . . . Recycling Unit Hacks 1 | . 1 . Retrieve Components 1 | . 1 . Scanalyzer . | . . . Garrison Access Hacks . | . . . Unauthorized Hacks . | . . . Terminals . | . . . Fabricators . | . . . Repair Stations . | . . . Recycling Units . | . . . Scanalyzers . | . . . Garrison Access . | . . . Data Cores Recovered . | . . . Used . | . . . Hacking Detections . | . . . Full Trace Events . | . . . Feedback Events . | . . . Feedback Blocked . | . . . Robot Schematics Acquired . | . . . Robots Built . | . . . Authchips . | . . . Time . | . . . Total Robot Build Rating . | . . . Part Schematics Acquired . | . . . Parts Built . | . . . Authchips . | . . . Time . | . . . Total Part Build Rating . | . . . Part Studies Acquired . | . . . Parts Repaired . | . . . Time . | . . . Parts Recycled . | . . . Recycled Matter . | . . . Retrieved Matter . | . . . Retrieved Components 2 | . 2 . Parts Scanalyzed . | . . . Part Schematics Acquired . | . . . Parts Damaged . | . . . Bothacking | -11 -10 -9 ------------ Run | Yrd Mat Mat Used RIF Installer . | . . . Robots Hacked . | . . . Non-combat . | . . . Combat . | . . . Robot Hacks Applied . | . . . Relay Couplers Released . | . . . Fabnet Peak Effective % . | . . . Robots Rewired . | . . . Allies Hacked . | . . . Hacks Repelled . | . . . Allies | -11 -10 -9 -------- Run | Yrd Mat Mat Total Allies . | . . . Largest Group . | . . . Highest-Rated Group . | . . . Highest-Rated Ally . | . . . Total Orders . | . . . Ally Attacks . | . . . Total Damage . | . . . Kills . | . . . Allies Corrupted . | . . . Allies Melted . | . . . Intel | -11 -10 -9 ------- Run | Yrd Mat Mat Active Infowar (turns) . | . . . Robot Analysis Total . | . . . Derelict Logs Recovered . | . . . Drone Launches . | . . . Drone Recoveries . | . . . Exploration | -11 -10 -9 ------------- Run | Yrd Mat Mat Turns Passed 256 | 82 174 . Spaces Moved 203 | 44 159 . Core 6 | 6 . . Treads 40 | 38 2 . Legs . | . . . Wheels 157 | . 157 . Hover . | . . . Flight . | . . . Fastest Speed 50 | 50 80 . Average Speed 94 | 145 81 . Slowest Speed 160 | 160 160 . Overloaded Moves . | . . . Propulsion Burnouts . | . . . Robots Hopped . | . . . Potential Cave-ins . | . . . Cave-ins Triggered . | . . . Exploration Rate (%) 15 | 4 40 2 Regions Visited 2 Branch Regions . Pre-discovered Areas . | . . . Known Exits Taken 2 | 1 1 . Unknown Exits Taken . | . . . Scrap Searched . | . . . Spaces Dug 6 | . 6 . Terrain Destroyed 18 | . 18 . Melee . | . . . Projectile . | . . . AOE 18 | . 18 . Terrain Rammed . | . . . Walls Destroyed . | . . . Machines Disabled . | . . . Actions | -11 -10 -9 --------- Run | Yrd Mat Mat Total 246 | 53 193 . Wait 16 | . 16 . Move 201 | 43 158 . Hop . | . . . Pick Up . | . . . Fast Attach 11 | 7 4 . Attach . | . . . Detach . | . . . Swap 1 | . 1 . Drop 5 | . 5 . Fire 10 | 3 7 . Melee . | . . . Ram . | . . . Kick . | . . . Crush . | . . . Escape Stasis . | . . . Rewire . | . . . Trap . | . . . Miscellaneous 2 | . 2 . Route ------- -11/Scrapyard -10/Materials -9/Materials History --------- Turn | Location | Event 1 | -11/Scrapyard | Upgraded with Propulsion slot (x1) 1 | -11/Scrapyard | Upgraded with Utility slot (x1) 1 | -11/Scrapyard | Upgraded with Weapon slot (x1) 8 | -11/Scrapyard | Identified exit to Materials 8 | -11/Scrapyard | Discovered exit to Materials (range 14) 83 | -11/Scrapyard | Entered Materials 84 | -10/Materials | Met a group of wandering Federalists 247 | -10/Materials | Identified exit to Materials 247 | -10/Materials | Discovered exit to Materials (range 6) 257 | -10/Materials | Entered another Materials area 257 | -9/Materials | Self-destructed Last Messages --------------- 00197_ Acquired 20 matter. 00198_ R-06 Scavenger collects Sml. Laser. 00202_ R-06 Scavenger collects Ion Engine. 00209_ Dropped Sml. Laser. 00210_ Acquired Assault Rifle. 00229_ A-02 Transporter distress signal alerts nearby ally. 00232_ G-34 Mercenary destroyed. 00232_ A-02 Transporter destroyed. 00235_ Acquired 21 matter. 00237_ Used Protomatter to restore core integrity (+3) 00238_ Used Protomatter to restore part integrity (+3) 00247_ EXIT=FOUND: MATERIALS 00256_ Triggered EMP Trap. 00256_ A bubble of electromagnetic force engulfs the area. LOCATION=MATERIALS GOAL=ESCAPE Map ----- +----------------------------------------------------+ | ???????????????????????????????????????? | | ???????????????????????????????????????? | | ???????????????????????????????????????? | | ???????????????????????????????????????? | | ???????????????????????????????????????? | | ???????????????????????????????????????? | | ???????????????????????????????????????? | | ???????????????????????????????????????? | | ???????????????????????????????????????? | | ???????????????????????????????????????? | | ???????????????????????????????????????? | | ???????????????????????????????????????? | | ???????????????????????????????????????? | | ???????????????????????????????????????? | | ???????????????????????????????????????? | | ???????????????????????????????????????? | | ?????????????#?????????????????????????? | | ?????????????? ????????????????????????? | | ???????????? ??????????????????????? | | ???????????? T ?????????????????????? | | ?????????????# ????????????????????? | | ?????????????# ??????????????????? | | ?????????????# =% ?????????????????? | | ?????????????# [= #####???????????? | | ?????????? [ #???????????? | | ?????????? @ #???????????? | | ?????????? #???????????? | | ?????????????#####"T"#######???????????? | | ?????????????????##????????????????????? | | ???????????????????????????????????????? | | ???????????????????????????????????????? | | ???????????????????????????????????????? | | ???????????????????????????????????????? | | | | | | | | | | | | | | | | | | | | | | | | | | | | | | | | | | | +----------------------------------------------------+ Best States ------------- Heat Dissipation 25 Energy Generation 10 Energy Capacity 250 Matter Stores 300 Matter Capacity 300 Sight Range 16 Terrain Scan Density 10 Armor Coverage 150 Resistance: KI 55 Resistance: TH 55 Resistance: EX 55 Resistance: EM 35 Resistance: I 35 Resistance: S 35 Resistance: P 35 Weapon Shielding 33 Evasion (%) 44 Recoil Reduction 2 Offensive Hacking 20 Item Schematics ----------------- None Robot Schematics ------------------ None Fabricated ------------ Nothing Repaired ---------- Nothing Studied --------- None Alien Tech Used ----------------- None Achievements -------------- None Challenges ------------ None RPGLIKE | -11 -10 -9 --------- Run | Yrd Mat Mat Levels Raised . | . . . XP Earned 6100 | 6000 100 . XP Spent 6000 | 6000 . . Upgrades 15 | 15 . . Propulsion Slot 1 | 1 . . Utility Slot 1 | 1 . . Weapon Slot 1 | 1 . . KI Resistance % 4 | 4 . . TH Resistance % 4 | 4 . . EX Resistance % 4 | 4 . . Protomatter Created 13 | . 13 . Integrity Restored 6 | . 6 . Core 3 | . 3 . Parts 3 | . 3 . Protomatter Decayed . | . . . Game ------ Seed LightInterceptClaymores Manual? 0 Play Time 00:06:17 Cumulative 1146.3 hours Start 2025.12.12 @ 00:07:32 End 2025.12.12 @ 20:39:00 Sessions 4 Manual Loads 0 Difficulty Explorer Special Mode Winter2019/RPGLIKE Game No. 761 Rogue 715 Adventurer 6 Explorer 40 Win Type - Total 20 Types 11/1/4/4/0/0/0/0/0/0 Lore% 66 Gallery% 75 Achievement% 50 Wizard Run 0 Options --------- Layout 2 ASCII 0 Keyboard 0 Movement Mouse Keybinds 0 Fullscreen 2 Font 48/Smallcaps Map View 50x44 Zoom Use 11% Tactical HUD 1 Map Filters NONE Filters NONE Steam 1 RUN: 7e5f7d36-369c-4ab8-a7be-56ab265abb33